bitfinex/quotes_SOLUSD_20230120
["timestamp","ask_amount","ask_price","bid_price","bid_amount"]
[1674254740433,20.0,25.395,25.387,20.0]
[1674254741077,20.0,25.401,25.387,20.0]
[1674254741278,147.93,25.4,25.383,20.0]
[1674254741602,37.96,25.399,25.383,20.0]
[1674254741820,29.54,25.398,25.383,20.0]
[1674254742009,37.0,25.397,25.383,20.0]
[1674254742220,29.54,25.396,25.383,20.0]
[1674254742436,20.0,25.395,25.383,20.0]
[1674254742641,29.54,25.394,25.383,20.0]
[1674254742856,20.0,25.393,25.383,20.0]
[1674254743064,66.54,25.392,25.361,20.0]
[1674254743274,20.0,25.391,25.361,20.0]
[1674254743477,164.94,25.39,25.361,20.0]
[1674254743705,20.0,25.389,25.361,20.0]
[1674254744044,47.51,25.388,25.361,20.0]
[1674254744243,20.0,25.387,25.361,20.0]
[1674254744565,165.91,25.386,25.361,20.0]
[1674254744767,118.4,25.384,25.361,20.0]
[1674254744978,37.0,25.383,25.361,20.0]
[1674254745185,29.55,25.382,25.361,20.0]
[1674254745400,37.0,25.381,25.361,20.0]
[1674254745612,118.4,25.38,25.361,20.0]
[1674254745813,156.36,25.379,25.361,20.0]
[1674254746021,118.4,25.377,25.361,20.0]
[1674254746230,118.4,25.375,25.361,20.0]
[1674254746441,118.4,25.373,25.369,18.0396]
[1674254746658,37.0,25.372,25.361,20.0]
[1674254746861,29.57,25.371,25.361,20.0]
[1674254747071,118.4,25.369,25.356,20.0]
[1674254747288,66.57,25.368,25.356,20.0]
[1674254747697,37.0,25.368,25.356,20.0]
[1674254748340,29.57,25.367,25.356,20.0]
[1674254748533,37.0,25.366,25.356,20.0]
[1674254748955,29.57,25.365,25.356,20.0]
[1674254749189,37.0,25.364,25.356,20.0]
[1674254749501,29.58,25.363,25.356,20.0]
[1674254749715,37.0,25.362,25.356,20.0]
[1674254749901,29.58,25.361,25.356,20.0]
[1674254750238,20.0,25.36,25.356,20.0]
[1674254750637,29.58,25.359,25.356,20.0]
[1674254750851,37.0,25.358,25.356,20.0]
[1674254751060,37.0,25.358,25.344,20.0]
[1674254751061,29.58,25.357,25.344,20.0]
[1674254751277,37.96,25.356,25.344,20.0]
[1674254751483,37.0,25.356,25.344,20.0]
[1674254752649,0.96,25.355,25.344,20.0]
[1674254752862,147.99,25.354,25.332,20.0]
[1674254753070,37.96,25.353,25.332,20.0]
[1674254753284,118.4,25.351,25.332,20.0]
[1674254753475,118.4,25.349,25.332,20.0]
[1674254753685,118.4,25.347,25.332,20.0]
[1674254753911,118.4,25.345,25.332,20.0]
[1674254754133,118.4,25.343,25.33,1.856]
[1674254754439,118.4,25.341,25.33,1.856]
[1674254754650,118.4,25.339,25.325,20.0]
[1674254754880,118.4,25.337,25.323,9.0]
[1674254755055,145.28148407,25.323,25.316,20.0]
[1674254755267,118.4,25.321,25.316,20.0]
[1674254755469,29.91767149,25.328,25.316,20.0]
[1674254755703,46.06889388,25.326,25.316,20.0]
[1674254755912,53.06153343,25.336,25.316,20.0]
[1674254756232,29.61,25.335,25.316,20.0]
[1674254756838,118.4,25.336,25.316,20.0]
[1674254757281,29.61,25.337,25.316,20.0]
[1674254757685,29.6,25.341,25.316,20.0]
[1674254757897,118.4,25.366,25.316,20.0]
[1674254758096,118.4,25.351,25.316,20.0]
[1674254758312,118.4,25.349,25.316,20.0]
[1674254758537,118.4,25.347,25.316,20.0]
[1674254758763,118.4,25.345,25.316,20.0]
[1674254758972,118.4,25.343,25.316,20.0]
[1674254759189,118.4,25.341,25.316,20.0]
[1674254759376,118.4,25.339,25.316,20.0]
[1674254759590,118.4,25.337,25.316,20.0]
[1674254759907,118.4,25.335,25.316,20.0]
[1674254760114,118.4,25.333,25.316,20.0]
[1674254760329,49.61,25.332,25.316,20.0]
[1674254760660,17.96,25.331,25.316,20.0]
[1674254760867,118.4,25.329,25.316,20.0]
[1674254761061,37.96,25.328,25.316,20.0]
[1674254761267,61.71576951,25.328,25.316,20.0]
[1674254761478,142.15576951,25.327,25.316,20.0]
[1674254761696,118.4,25.325,25.316,20.0]
[1674254761901,138.4,25.324,25.316,20.0]
[1674254762118,17.96,25.323,25.316,20.0]
[1674254762430,67.80915298,25.322,25.316,20.0]
[1674254762636,17.0,25.321,25.316,20.0]
[1674254762861,20.0,25.32,25.316,20.0]
[1674254763604,23.75576951,25.319,25.316,20.0]
[1674254764002,29.61,25.33,25.316,20.0]
[1674254764211,23.75576951,25.326,25.316,20.0]
[1674254764427,29.61,25.336,25.316,20.0]
[1674254764651,23.75576951,25.335,25.316,20.0]
[1674254764871,118.4,25.333,25.316,20.0]
[1674254765049,29.61,25.332,25.316,20.0]
[1674254765263,20.0,25.331,25.316,20.0]
[1674254765474,46.61,25.33,25.316,20.0]
[1674254765694,20.0,25.329,25.316,20.0]
[1674254766320,49.61,25.334,25.316,20.0]
[1674254766637,23.75576951,25.332,25.316,20.0]
[1674254766846,20.0,25.331,25.316,20.0]
[1674254767058,49.61,25.334,25.316,20.0]
[1674254767395,118.4,25.329,25.316,20.0]
[1674254767578,49.62,25.328,25.316,20.0]
[1674254767912,51.63754339,25.31,25.3,1500.0]
[1674254768219,20.0,25.324,25.3,1346.708]
[1674254768220,171.51007,25.309,25.3,1346.708]
[1674254768438,2.51007,25.308,25.3,1322.2689]
[1674254768638,118.4,25.306,25.3,1219.95331922]
[1674254768844,118.4,25.304,25.3,1173.21690696]
[1674254769051,118.4,25.302,25.3,1173.21690696]
[1674254769261,169.01,25.301,25.3,1055.84160696]
[1674254769472,261.10881703,25.301,25.3,1007.14024899]
[1674254769802,284.86458654,25.301,25.3,1007.14024899]
[1674254769991,299.35451654,25.301,25.3,1007.14024899]
[1674254770408,299.35451654,25.301,25.3,938.05784786]
[1674254770954,298.39451654,25.301,25.3,938.05784786]
[1674254771567,99.01233685,25.301,25.3,938.05784786]
[1674254771773,23.75576951,25.301,25.3,938.05784786]
[1674254772413,0.00876951,25.301,25.3,938.05784786]
[1674254772625,13.837,25.304,25.3,938.05784786]
[1674254772855,29.63,25.314,25.3,938.05784786]
[1674254772856,23.75576951,25.302,25.3,938.05784786]
[1674254773050,118.4,25.314,25.301,20.0]
[1674254773674,38.8268872,25.315,25.301,20.0]
[1674254774521,15.5135872,25.315,25.301,20.0]
[1674254774944,162.15576951,25.314,25.301,20.0]
[1674254775364,118.4,25.312,25.301,20.0]
[1674254775573,118.4,25.31,25.301,20.0]
[1674254775786,118.4,25.308,25.301,20.0]
[1674254776004,156.36,25.307,25.301,20.0]
[1674254776326,138.4,25.306,25.3,938.05784786]
[1674254776642,17.96,25.305,25.301,20.0]
[1674254776953,20.0,25.304,25.301,20.0]
[1674254777482,23.75576951,25.313,25.301,20.0]
[1674254777704,20.0,25.312,25.301,20.0]
[1674254777907,23.75576951,25.304,25.301,20.0]
[1674254778216,20.0,25.303,25.301,20.0]
[1674254778615,20.0,25.303,25.3,938.05784786]
[1674254778616,142.15576951,25.302,25.3,938.05784786]
[1674254778820,37.96,25.301,25.3,938.05784786]
[1674254779041,60.75576951,25.301,25.3,938.05784786]
[1674254779470,26.18046951,25.301,25.3,938.05784786]
[1674254779686,23.75576951,25.301,25.3,938.05784786]
[1674254779883,16.80186951,25.301,25.3,938.05784786]
[1674254780081,118.4,25.314,25.301,20.0]
[1674254780297,118.4,25.312,25.301,20.0]
[1674254780507,0.96,25.311,25.301,20.0]
[1674254780927,118.4,25.31,25.301,20.0]
[1674254781156,0.96,25.309,25.301,20.0]
[1674254781345,118.4,25.308,25.301,20.0]
[1674254781571,37.96,25.307,25.301,20.0]
[1674254781894,43.75576951,25.307,25.301,20.0]
[1674254782112,23.75576951,25.306,25.301,20.0]
[1674254782425,20.0,25.305,25.301,20.0]
[1674254783143,118.4,25.314,25.301,20.0]
[1674254783671,120.0,25.342,25.301,20.0]
[1674254783672,29.61,25.335,25.302,20.0]
[1674254783874,118.4,25.334,25.303,0.96]
[1674254784089,118.4,25.334,25.304,20.0]
[1674254784298,118.4,25.334,25.305,37.96]
[1674254784530,118.4,25.334,25.306,20.0]
[1674254784720,23.75576951,25.337,25.307,37.96]
[1674254784926,118.4,25.342,25.308,20.0]
[1674254785260,29.59,25.351,25.309,89.78576951]
[1674254785477,23.75576951,25.351,25.31,20.0]
[1674254785660,1.68212744,25.353,25.311,66.02]
[1674254785872,29.59,25.352,25.313,20.0]
[1674254786193,1.68212744,25.353,25.314,40.48361]
[1674254786395,1.68212744,25.353,25.316,20.0]
[1674254786608,1.68212744,25.353,25.317,68.54331]
[1674254786939,1.68212744,25.353,25.318,2.52321]
[1674254787159,1.68212744,25.353,25.32,20.0]
[1674254787348,1.68212744,25.353,25.321,40.48291]
[1674254787775,1.68212744,25.353,25.322,20.0]
[1674254788101,1.68212744,25.353,25.323,37.96]
[1674254788302,49.57,25.365,25.325,20.0]
[1674254788522,49.57,25.365,25.326,37.96]
[1674254788711,29.57,25.365,25.326,37.96]
[1674254788923,23.75576951,25.364,25.327,27.8]
[1674254789237,29.58,25.363,25.328,17.96]
[1674254789446,23.75576951,25.364,25.329,20.0]
[1674254789657,23.75576951,25.364,25.33,17.96]
[1674254790096,29.57,25.369,25.331,2.52191]
[1674254790305,20.0,25.368,25.333,20.0]
[1674254790514,29.57,25.367,25.334,17.96]
[1674254790828,20.0,25.366,25.334,17.96]
[1674254791013,29.57,25.365,25.335,20.0]
[1674254791229,20.0,25.364,25.336,17.96]
[1674254791448,20.0,25.364,25.337,20.0]
[1674254791660,118.4,25.383,25.337,20.0]
[1674254791661,29.58,25.363,25.338,17.96]
[1674254791881,20.0,25.362,25.338,17.96]
[1674254792275,20.0,25.371,25.339,20.0]
[1674254792500,20.0,25.379,25.34,17.96]
[1674254792695,29.56,25.378,25.34,17.96]
[1674254793119,138.4,25.377,25.341,20.0]
[1674254793349,147.96,25.376,25.343,20.0]
[1674254793537,171.71576951,25.376,25.344,17.96]
[1674254793750,23.75576951,25.375,25.344,17.96]
[1674254793976,147.96,25.374,25.344,17.96]
[1674254794282,23.75576951,25.373,25.343,20.0]
[1674254794491,147.97,25.372,25.343,20.0]
[1674254794719,118.4,25.37,25.343,20.0]
[1674254795032,118.4,25.368,25.343,20.0]
[1674254795220,67.53,25.367,25.343,20.0]
[1674254795429,118.4,25.366,25.343,20.0]
[1674254795656,185.93,25.365,25.343,20.0]
[1674254795866,209.68576951,25.365,25.343,20.0]
[1674254796393,149.28573365,25.365,25.343,20.0]
[1674254796607,125.52996414,25.365,25.343,20.0]
[1674254797130,149.28573365,25.365,25.343,20.0]
[1674254798600,125.52996414,25.365,25.343,20.0]
[1674254798812,67.53,25.365,25.343,20.0]
[1674254799229,81.75573365,25.364,25.343,20.0]
[1674254799422,50.54,25.363,25.343,20.0]
[1674254799633,17.0,25.362,25.343,20.0]
[1674254799842,50.54,25.361,25.343,20.0]
[1674254800265,17.0,25.36,25.343,20.0]
[1674254800589,50.54,25.359,25.343,20.0]
[1674254800799,17.0,25.358,25.343,20.0]
[1674254801012,50.54,25.357,25.343,20.0]
[1674254801230,17.0,25.356,25.343,20.0]
[1674254801427,20.0,25.355,25.343,20.0]
[1674254801635,20.0,25.357,25.343,20.0]
[1674254802061,49.58,25.363,25.343,20.0]
[1674254802272,0.96,25.362,25.343,20.0]
[1674254802494,29.58,25.361,25.343,20.0]
[1674254802702,20.96,25.36,25.343,20.0]
[1674254802917,46.58,25.359,25.343,20.0]
[1674254803103,20.96,25.358,25.343,20.0]
[1674254803316,17.0,25.357,25.343,20.0]
[1674254803548,20.96,25.356,25.343,20.0]
[1674254803862,17.0,25.355,25.343,20.0]
[1674254804055,20.0,25.354,25.343,20.0]
[1674254804260,3.0,25.354,25.343,20.0]
[1674254804470,20.0,25.384,25.343,20.0]
[1674254804693,57.99996414,25.372,25.344,17.96]
[1674254805102,20.0,25.37,25.344,0.96]
[1674254805312,29.57,25.369,25.342,17.96]
[1674254805532,29.57,25.369,25.342,0.96]
[1674254805847,29.57,25.369,25.332,114.3589]
[1674254805848,20.0,25.368,25.332,114.3589]
[1674254806080,20.0,25.366,25.333,17.96]
[1674254806255,50.53,25.365,25.333,17.96]
[1674254806465,20.0,25.363,25.333,17.96]
[1674254806672,20.0,25.363,25.334,2.52161]
[1674254806901,20.0,25.363,25.335,20.96]
[1674254807114,20.0,25.363,25.336,39.52141]
[1674254807305,20.0,25.363,25.34,938.05784786]
[1674254807517,20.0,25.366,25.341,40.48092]
[1674254807725,20.0,25.377,25.342,40.0]
[1674254807960,20.0,25.377,25.343,20.48072]
[1674254808160,20.0,25.377,25.345,20.0]
[1674254808356,20.0,25.377,25.346,68.22042]
[1674254808571,20.0,25.377,25.348,20.0]
[1674254808795,20.0,25.377,25.349,20.48012]
[1674254809209,20.0,25.383,25.35,20.0]
[1674254809537,20.0,25.376,25.351,20.47992]
[1674254809739,20.0,25.38,25.352,22.51982]
[1674254809959,20.0,25.38,25.353,20.47972]
[1674254810166,20.0,25.38,25.354,22.51962]
[1674254810372,20.0,25.38,25.355,20.47953]
[1674254810569,20.0,25.38,25.356,2.51943]
[1674254810776,20.0,25.38,25.357,0.96]
[1674254810990,20.0,25.38,25.357,3.47933]
[1674254811418,20.0,25.38,25.358,23.75576951]
[1674254811744,20.0,25.38,25.359,20.47913]
[1674254811945,20.0,25.38,25.361,20.0]
[1674254812264,20.0,25.383,25.362,40.47883]
[1674254812486,20.0,25.383,25.363,22.51873]
[1674254812663,20.0,25.383,25.364,40.47863]
[1674254813082,20.0,25.383,25.365,26.27429951]
[1674254813299,20.0,25.385,25.367,20.0]
[1674254813614,4.5206,25.385,25.368,20.47823]
[1674254814032,20.0,25.4,25.369,46.27389951]
[1674254814244,20.0,25.4,25.371,20.0]
[1674254814449,20.0,25.4,25.372,22.51784]
[1674254814669,20.0,25.4,25.373,20.47774]
[1674254814879,20.0,25.4,25.374,42.51764]
[1674254815093,20.0,25.4,25.376,20.0]
[1674254815418,20.0,25.4,25.377,40.47734]
[1674254815607,20.0,25.4,25.378,2.51724]
[1674254815817,14.7415,25.393,25.379,0.96]
[1674254816130,20.0,25.4,25.379,3.47714]
[1674254816343,20.0,25.4,25.38,2.51704]
[1674254816551,20.0,25.4,25.381,0.96]
[1674254816783,20.0,25.4,25.381,3.47694]
[1674254816972,20.0,25.4,25.381,20.47694]
[1674254817407,20.0,25.4,25.382,22.51685]
[1674254817618,20.0,25.4,25.383,40.47675]
[1674254818148,20.0,25.4,25.384,2.51665]
[1674254818356,20.0,25.406,25.385,0.96]
[1674254818552,20.0,25.412,25.387,20.0]
[1674254818782,20.0,25.426,25.389,20.0]
[1674254818984,20.0,25.426,25.39,67.34605]
[1674254819189,20.0,25.426,25.391,2.51595]
[1674254819401,43.75576951,25.426,25.392,20.96]
[1674254819721,43.75576951,25.426,25.393,39.51575]
[1674254819924,43.75576951,25.426,25.394,23.47566]
[1674254820133,43.75576951,25.426,25.395,39.51556]
[1674254820447,20.0,25.426,25.396,3.47546]
[1674254820656,20.0,25.426,25.397,20.0]
[1674254820880,20.0,25.426,25.398,2.51526]
[1674254821084,29.5,25.425,25.399,0.96]
[1674254821288,29.5,25.425,25.399,59.43931956]
[1674254821503,29.5,25.425,25.4,75.47931956]
[1674254821704,29.51,25.422,25.4,58.47931956]
[1674254821919,20.0,25.424,25.398,2.51526]
[1674254822550,20.0,25.421,25.398,2.51526]
[1674254822762,49.51,25.42,25.398,2.51526]
[1674254823088,49.51,25.42,25.385,46.68]
[1674254823089,20.0,25.42,25.39,20.0]
[1674254823293,20.0,25.42,25.391,22.51595]
[1674254823504,20.0,25.42,25.393,23.75576951]
[1674254823724,20.0,25.42,25.394,22.51566]
[1674254823924,20.0,25.42,25.395,20.47556]
[1674254824135,20.0,25.42,25.396,22.51546]
[1674254824343,20.0,25.42,25.397,20.47536]
[1674254824554,20.0,25.42,25.397,3.47536]
[1674254825620,20.0,25.42,25.397,2.51536]
[1674254825820,49.51,25.419,25.386,118.3968]
[1674254826025,20.0,25.418,25.388,20.0]
[1674254826243,49.51,25.417,25.389,2.51615]
[1674254826673,20.0,25.416,25.389,2.51615]
[1674254826989,20.0,25.414,25.389,2.51615]
[1674254827197,20.0,25.413,25.389,2.51615]
[1674254827604,20.0,25.413,25.39,0.96]
[1674254827824,20.0,25.412,25.39,0.96]
[1674254828045,20.0,25.411,25.39,0.96]
[1674254828445,20.0,25.41,25.39,0.96]
[1674254829066,20.0,25.41,25.39,17.96]
[1674254829291,20.0,25.41,25.392,20.0]
[1674254829493,20.0,25.41,25.393,17.96]
[1674254829823,20.0,25.41,25.394,20.0]
[1674254830036,20.0,25.41,25.395,17.96]
[1674254830234,20.0,25.41,25.396,20.0]
[1674254830432,20.0,25.41,25.397,17.96]
[1674254831282,20.0,25.41,25.397,0.96]
[1674254831497,20.0,25.41,25.389,2.51615]
[1674254831498,29.52,25.409,25.389,2.51615]
[1674254831704,20.0,25.41,25.38,114.9124]
[1674254831924,20.0,25.41,25.381,22.51694]
[1674254832128,20.0,25.41,25.382,2.51685]
[1674254832748,20.0,25.41,25.383,23.75576951]
[1674254832954,20.0,25.41,25.382,2.51685]
[1674254833169,20.0,25.41,25.382,22.51685]
[1674254833375,20.0,25.41,25.382,2.51685]
[1674254833610,37.0,25.409,25.38,114.9124]
[1674254833832,29.52,25.408,25.38,114.9124]
[1674254834025,57.0,25.407,25.38,114.9124]
[1674254834348,57.0,25.407,25.372,141.37946951]
[1674254834551,24.71576951,25.406,25.373,20.0]
[1674254834760,20.0,25.404,25.373,20.0]
[1674254835087,209.64576951,25.403,25.362,136.0154]
[1674254835292,277.39592827,25.403,25.362,109.0854]
[1674254835483,67.75015876,25.402,25.362,109.0854]
[1674254835697,50.49,25.401,25.362,109.0854]
[1674254836014,20.0,25.399,25.351,27.35]
[1674254836218,118.4,25.396,25.353,119.4153]
[1674254836428,118.4,25.396,25.35,20.0]
[1674254836429,118.4,25.394,25.35,20.0]
[1674254836646,118.4,25.392,25.343,146.7753]
[1674254836859,66.54,25.393,25.343,146.7753]
[1674254836860,118.4,25.388,25.343,119.4153]
[1674254837069,118.4,25.386,25.343,119.4153]
[1674254837282,118.4,25.384,25.343,119.4153]
[1674254837498,138.4,25.381,25.344,85.8666]
[1674254837712,167.96,25.38,25.322,27.38]
[1674254837920,118.4,25.378,25.322,119.4153]
[1674254838110,118.4,25.376,25.322,119.4153]
[1674254838320,118.4,25.374,25.323,27.38]
[1674254838541,50.52,25.373,25.323,27.38]
[1674254838740,20.0,25.371,25.341,20.0]
[1674254838950,20.0,25.371,25.323,27.38]
[1674254838951,168.93,25.37,25.323,27.38]
[1674254839160,17.0,25.369,25.323,27.38]
[1674254839388,20.0,25.367,25.323,27.38]
[1674254839587,67.53,25.366,25.323,27.38]
[1674254839792,20.0,25.365,25.322,119.4153]
[1674254840004,185.94,25.364,25.322,119.4153]
[1674254840215,233.79972259,25.364,25.316,27.78]
[1674254840416,210.0154921,25.363,25.316,27.78]
[1674254840631,165.94,25.362,25.316,27.78]
[1674254840837,138.4,25.361,25.316,27.78]
[1674254841065,67.54,25.36,25.316,27.78]
[1674254841284,20.0,25.359,25.316,27.78]
[1674254841485,50.54,25.358,25.316,27.78]
[1674254841700,20.0,25.357,25.316,27.78]
[1674254841919,37.96,25.356,25.316,27.78]
[1674254842231,109.5754921,25.356,25.316,27.78]
[1674254842426,47.85972259,25.355,25.316,27.78]
[1674254842637,20.0,25.353,25.316,27.78]
[1674254842851,20.0,25.352,25.316,27.78]
[1674254843048,17.96,25.351,25.316,27.78]
[1674254843264,20.0,25.349,25.316,27.78]
[1674254843484,17.96,25.348,25.31,27.93]
[1674254843686,49.6,25.347,25.34,809.87214786]
[1674254843895,37.96,25.346,25.34,296.29214786]
[1674254844112,20.0,25.344,25.34,56.29214786]
[1674254844318,37.96,25.343,25.34,0.00214786]
[1674254844544,20.0,25.342,25.316,20.0]
[1674254844756,20.0,25.34,25.316,20.0]
[1674254845064,41.71576951,25.339,25.316,20.0]
[1674254845259,136.17914763,25.339,25.316,20.0]
[1674254845470,47.85972259,25.338,25.316,20.0]
[1674254845681,37.96,25.337,25.318,20.0]
[1674254846095,47.85972259,25.336,25.318,20.0]
[1674254846307,20.0,25.334,25.317,20.0]
[1674254846627,17.96,25.333,25.309,28.09]
[1674254846838,17.96,25.333,25.286,20.0]
[1674254846839,140.91007,25.332,25.286,20.0]
[1674254847046,20.0,25.33,25.297,20.0]
[1674254847262,49.62,25.329,25.297,20.0]
[1674254847474,20.0,25.327,25.297,20.0]
[1674254847688,37.96,25.326,25.297,20.0]
[1674254848008,138.4,25.324,25.29,20.0]
[1674254848194,118.4,25.322,25.29,20.0]
[1674254848408,20.0,25.321,25.29,20.0]
[1674254848620,20.0,25.319,25.29,20.0]
[1674254848844,17.96,25.318,25.29,20.0]
[1674254849272,20.0,25.316,25.29,20.0]
[1674254849483,67.59,25.315,25.29,20.0]
[1674254849669,20.0,25.314,25.29,20.0]
[1674254849880,67.59,25.313,25.288,20.0]
[1674254850199,23.75576951,25.312,25.288,20.0]
[1674254850403,20.0,25.31,25.288,20.0]
[1674254850724,24.71576951,25.309,25.288,20.0]
[1674254850945,17.0,25.308,25.288,20.0]
[1674254851154,20.96,25.307,25.278,20.0]
[1674254851350,17.0,25.306,25.278,20.0]
[1674254851559,0.96,25.305,25.278,20.0]
[1674254851772,44.71576951,25.305,25.278,20.0]
[1674254851986,17.0,25.304,25.278,20.0]
[1674254852204,0.96,25.303,25.278,20.0]
[1674254852414,20.0,25.302,25.278,20.0]
[1674254852644,17.96,25.301,25.279,20.0]
[1674254853141,17.96,25.301,25.28,20.0]
[1674254853346,20.0,25.3,25.28,20.0]
[1674254853570,17.96,25.299,25.28,20.0]
[1674254853888,29.64,25.309,25.28,20.0]
[1674254854208,20.0,25.306,25.28,20.0]
[1674254854524,20.0,25.306,25.281,17.96]
[1674254854722,20.0,25.306,25.282,20.0]
[1674254854935,20.0,25.306,25.283,17.96]
[1674254855149,20.0,25.308,25.284,20.0]
[1674254855347,20.0,25.308,25.285,0.96]
[1674254855870,20.0,25.309,25.285,0.96]
[1674254856090,20.0,25.308,25.285,17.96]
[1674254856306,20.0,25.309,25.286,20.0]
[1674254856511,20.0,25.31,25.287,37.96]
[1674254856708,20.0,25.31,25.288,20.0]
[1674254857042,20.0,25.31,25.289,17.96]
[1674254857258,20.0,25.31,25.29,20.0]
[1674254857470,20.0,25.31,25.292,20.0]
[1674254857886,20.0,25.31,25.293,17.96]
[1674254858097,20.0,25.31,25.293,0.96]
[1674254858522,49.64,25.31,25.294,0.96]
[1674254858829,20.0,25.31,25.292,20.0]
[1674254859871,20.0,25.31,25.293,17.0]
[1674254860077,20.0,25.31,25.294,0.96]
[1674254860305,20.0,25.312,25.294,0.96]
[1674254860507,20.0,25.31,25.294,0.96]
[1674254862080,23.75576951,25.309,25.294,0.96]
[1674254862295,20.0,25.31,25.29,20.0]
[1674254862704,20.0,25.308,25.29,20.0]
[1674254863451,23.75576951,25.309,25.29,20.0]
[1674254863988,20.0,25.308,25.29,20.0]
[1674254864620,47.51153902,25.307,25.29,20.0]
[1674254864935,20.0,25.306,25.29,20.0]
[1674254865124,20.0,25.306,25.278,129.7668]
[1674254865453,41.71576951,25.305,25.286,20.0]
[1674254865669,20.0,25.304,25.286,20.0]
[1674254866921,20.0,25.304,25.289,20.0]
[1674254867240,20.0,25.306,25.289,20.0]
[1674254867461,23.75576951,25.304,25.289,20.0]
[1674254867673,17.0,25.305,25.289,20.0]
[1674254867851,20.0,25.304,25.286,20.0]
[1674254868066,17.0,25.303,25.286,20.0]
[1674254868486,20.0,25.302,25.286,20.0]
[1674254868716,20.0,25.3,25.286,20.0]
[1674254869037,17.0,25.299,25.286,20.0]
[1674254869247,17.0,25.299,25.285,20.0]
[1674254869432,17.0,25.299,25.286,20.0]
[1674254869643,17.0,25.299,25.285,20.0]
[1674254870079,20.0,25.302,25.283,20.0]
[1674254870607,17.0,25.301,25.283,20.0]
[1674254871003,17.0,25.301,25.284,0.96]
[1674254871431,20.0,25.302,25.284,20.96]
[1674254871652,20.0,25.302,25.285,20.0]
[1674254871840,17.0,25.301,25.285,20.0]
[1674254872492,20.0,25.299,25.285,20.0]
[1674254873236,20.0,25.302,25.285,20.0]
[1674254873638,17.0,25.301,25.285,20.0]
[1674254873968,20.0,25.302,25.285,20.0]
[1674254874163,20.0,25.304,25.286,0.96]
[1674254874495,20.0,25.304,25.286,20.96]
[1674254874705,20.0,25.304,25.287,20.0]
[1674254874898,20.0,25.307,25.288,20.0]
[1674254875535,17.0,25.305,25.288,20.0]